lending/lending_fUSD_20250429
["ID","MTS","AMOUNT","RATE_DAILY","PERIOD"]
[359335497,1745935838471,-470.0,0.00027507,2]
[359335498,1745935838480,-470.0,0.00027507,2]
[359335499,1745935838490,-470.0,0.00027507,2]
[359335500,1745935838499,-470.0,0.00027507,2]
[359335501,1745935838509,-470.0,0.00027507,2]
[359335502,1745935838518,-470.0,0.00027507,2]
[359335503,1745935838527,-470.0,0.00027507,2]
[359335504,1745935838537,-470.0,0.00027507,2]
[359335505,1745935838546,-470.0,0.00027507,2]
[359335506,1745935838555,-470.0,0.00027507,2]
[359335507,1745935838564,-470.0,0.00027507,2]
[359335508,1745935838574,-470.0,0.00027507,2]
[359335509,1745935838583,-470.0,0.00027507,2]
[359335510,1745935838594,-470.0,0.00027507,2]
[359335511,1745935838604,-470.0,0.00027507,2]
[359335512,1745935838613,-470.0,0.00027507,2]
[359335513,1745935838623,-515.47,0.00027507,2]
[359335514,1745935838632,-341.89517868,0.00027507,10]
[359335515,1745935838641,-708.44,0.00027507,2]
[359335516,1745935838651,-470.0,0.00027507,2]
[359335517,1745935838664,-470.0,0.00027507,2]
[359335518,1745935838674,-5096.79,0.00027507,2]
[359335519,1745935838684,-470.0,0.00027507,2]
[359335520,1745935838694,-470.0,0.00027507,2]
[359335521,1745935838704,-470.0,0.00027507,2]
[359335522,1745935838713,-470.0,0.00027507,2]
[359335523,1745935838723,-493.64097637,0.00027507,2]
[359335524,1745935838734,-2057.33,0.00027507,2]
[359335525,1745935838743,-470.0,0.00027507,2]
[359335526,1745935838752,-470.0,0.00027507,2]
[359335527,1745935838762,-470.0,0.00027507,2]
[359335528,1745935838771,-170.39891957,0.00027507,2]
[359335548,1745935840337,-311.90108043,0.00027507,2]
[359335550,1745935840347,-470.0,0.00027507,2]
[359335552,1745935840357,-373.01405094,0.00027507,2]
[359335553,1745935840367,-470.0,0.00027507,2]
[359335555,1745935840376,-882.74873361,0.00027507,2]
[359335557,1745935840388,-747.95126639,0.00027507,2]
[359335559,1745935840398,-470.0,0.00027507,2]
[359335561,1745935840408,-241.57697638,0.00027507,2]
[359335563,1745935840418,-2210.13227657,0.00027507,2]
[359335565,1745935840429,-4771.16895539,0.00027507,2]
[359335566,1745935840441,-1130.59146894,0.00027507,2]
[359335567,1745935840488,-8852.88286436,0.00027507,2]
[359335604,1745935843918,-470.0,0.00027506,2]
[359335605,1745935843929,-470.0,0.00027506,2]
[359335606,1745935843939,-470.0,0.00027507,2]
[359335607,1745935843949,-486.84,0.00027507,2]
[359335608,1745935843958,-35884.86515448,0.00027507,2]
[359335609,1745935844126,-937.84349726,0.00027507,2]
[359335619,1745935845969,-678.46196361,0.00027507,2]
[359335620,1745935846139,-4236.64803639,0.00027507,2]
[359335621,1745935846149,-470.0,0.00027507,2]
[359335622,1745935846158,-323.87185026,0.00027507,2]
[359335623,1745935847578,-1587.03359657,0.00027507,2]
[359335624,1745935847591,-950.97304384,0.00027507,2]
[359335625,1745935847649,-11968.96900003,0.00027507,2]
[359335626,1745935847665,-1140.79999,0.00027507,2]
[359335627,1745935847677,-1302.00332899,0.00027507,2]
[359335684,1745936149356,560.27996893,0.00036,120]
[359335685,1745936223926,191.0,0.00029575,30]
[359335687,1745936292040,218.895105,0.00026326,4]
[359335688,1745936381769,175.116084,0.00026326,4]
[359335689,1745936402720,200.0,0.00026887,15]
[359335690,1745936426503,175.116084,0.00026326,4]
[359335691,1745936471558,175.116084,0.00026326,4]
[359335692,1745936516523,175.116084,0.00026326,4]
[359335700,1745936561597,175.116084,0.00026326,4]
[359335701,1745936656228,150.83,0.00027425,30]
[359335702,1745936708361,2000.0,0.0002,2]
[359335703,1745936708386,2000.0,0.0002,2]
[359335704,1745936708409,2000.0,0.0002,2]
[359335705,1745936708433,2000.0,0.0002,2]
[359335706,1745936708457,2000.0,0.0002,2]
[359335707,1745936708483,2000.0,0.0002,2]
[359335708,1745936708507,2000.0,0.0002,2]
[359335709,1745936708531,2000.0,0.0002,2]
[359335710,1745936708556,2000.0,0.0002,2]
[359335711,1745936708578,2000.0,0.0002,2]
[359335712,1745936708600,2000.0,0.0002,2]
[359335713,1745936708624,2000.0,0.0002,2]
[359335714,1745936708647,2000.0,0.0002,2]
[359335715,1745936708670,2000.0,0.0002,2]
[359335716,1745936708695,2000.0,0.0002,2]
[359335717,1745936708722,2000.0,0.0002,2]
[359335718,1745936708753,32850.79440424,0.0002,2]
[359335719,1745936727378,334.36,0.00025,10]
[359335720,1745936736978,261.0383941,0.00036986,60]
[359335722,1745936755279,26526.08424631,0.0001983,2]
[359335731,1745936920239,250.0,0.00017,2]
[359335732,1745936921326,300.0,0.00019,2]
[359335733,1745936922616,4295.891456,0.00028,60]
[359335736,1745937032440,-350.0,0.00021,2]
[359335737,1745937032452,-151.0,0.00022023,2]
[359335738,1745937032461,-151.0,0.00022062,2]
[359335739,1745937032471,-151.0,0.00022079,2]
[359335740,1745937032480,-151.0,0.00022146,2]
[359335741,1745937032489,-300.0,0.00022246,2]
[359335742,1745937032498,-1200.0,0.00022246,2]
[359335743,1745937032506,-300.0,0.00022246,2]
[359335744,1745937032516,-9379.0716784,0.00022247,2]
[359335751,1745937038064,-620.9283216,0.00022247,2]
[359335752,1745937038074,-200.0,0.0002329,2]
[359335754,1745937038084,-500.0,0.00023425,2]
[359335756,1745937038093,-420.0,0.00024168,2]
[359335757,1745937038103,-1043.0,0.00024281,2]
[359335758,1745937038113,-250.0,0.00024307,2]
[359335759,1745937038126,-329.48,0.00024431,2]
[359335760,1745937038136,-189.25783037,0.00025295,2]
[359335761,1745937038146,-250.0,0.00025323,2]
[359335762,1745937038156,-200.0,0.00025323,2]
[359335763,1745937038167,-163.58,0.00025494,2]
[359335764,1745937038176,-250.0,0.00025619,2]
[359335765,1745937038186,-500.0,0.00025789,2]
[359335766,1745937038196,-200.0,0.00025844,2]
[359335767,1745937038206,-264.27,0.0002588,2]
[359335768,1745937038215,-156.31,0.00025935,2]
[359335769,1745937038224,-1000.0,0.00026178,2]
[359335770,1745937038236,-432.0,0.00026256,2]
[359335771,1745937038246,-207.4,0.00026277,2]
[359335772,1745937038255,-1820.667507,0.000264,2]
[359335773,1745937038267,-1967.41000002,0.000264,2]
[359335774,1745937038278,-1620.877762,0.000264,2]
[359335775,1745937038290,-2290.16,0.000264,2]
[359335776,1745937038302,-476.03,0.000264,2]
[359335777,1745937038313,-444.0,0.000264,2]
[359335778,1745937038324,-1662.4,0.000264,2]
[359335779,1745937038432,-32.11592968,0.000264,2]
[359335781,1745937038442,-916.04407032,0.000265,2]
[359335789,1745937040354,-974.49434683,0.000265,2]
[359335790,1745937040473,-5601.22911041,0.000265,2]
[359335791,1745937040485,-1468.22068582,0.000265,2]
[359335792,1745937040498,-15120.77018624,0.000265,2]
[359335793,1745937040557,-432.26839026,0.000265,2]
[359335794,1745937040570,-721.51123384,0.000265,2]
[359335795,1745937040581,-1630.22000008,0.000265,2]
[359335796,1745937040595,-4097.7999998,0.000265,2]
[359335797,1745937040607,-479.95712293,0.000265,2]
[359335798,1745937040657,-13851.0160209,0.000265,2]
[359335805,1745937042257,-0.02620088,0.000265,2]
[359335806,1745937042270,-803.358,0.000265,2]
[359335807,1745937042282,-84.63175063,0.000265,2]
[359335808,1745937042291,-329.48,0.00026695,2]
[359335809,1745937042301,-162.87824937,0.00026769,2]
[359335810,1745937042333,-46.17244607,0.00026769,2]
[359335811,1745937042342,-241.87679836,0.0002699,2]
[359335819,1745937043417,-347.99916423,0.0002699,2]
[359335820,1745937043429,-769.4922,0.0002699,2]
[359335821,1745937043456,-4908.2,0.0002699,2]
[359335822,1745937043476,-567.624,0.0002699,2]
[359335823,1745937043561,-1443.469986,0.0002699,2]
[359335824,1745937043573,-2955.74718038,0.0002699,2]
[359335826,1745937043583,-1961.12339134,0.00027,2]
[359335841,1745937046176,-5170.1689922,0.00027,2]
[359335842,1745937046220,-7050.54052419,0.00027,2]
[359335843,1745937046232,-4754.02886028,0.00027,2]
[359335844,1745937046243,-2153.64560495,0.00027,2]
[359335845,1745937046330,-724.84774335,0.00027,2]
[359335846,1745937046342,-1896.0,0.00027,2]
[359335847,1745937046383,-203.13923075,0.00027,2]
[359335850,1745937046744,-5724.81715108,0.00027,2]
[359335851,1745937046758,-702.59030748,0.00027,2]
[359335852,1745937046796,-22415.67354223,0.00027,2]
[359335853,1745937046811,-2268.19385748,0.00027,2]
[359335855,1745937087084,230.7934334,0.00026326,4]
[359335856,1745937122527,200.0,0.00029255,117]
[359335857,1745937122606,200.0,0.00026748,117]
[359335858,1745937241387,200.0,0.00028904,117]
[359335859,1745937241492,200.0,0.00026436,117]
[359335860,1745937266698,184.6347467,0.00026326,4]
[359335863,1745937591825,-202.24479639,0.00024468,2]
[359335864,1745937679281,150.83,0.00027425,30]
[359335865,1745937859695,5800.0,0.0003,30]
[359335877,1745938232211,-125.48520361,0.00024468,2]
[359335878,1745938232220,-207.4,0.00026277,2]
[359335879,1745938232230,-264.27,0.00026348,2]
[359335880,1745938232239,-158.73,0.00026356,2]
[359335881,1745938232248,-163.58,0.00026356,2]
[359335882,1745938232258,-1000.0,0.00026436,2]
[359335883,1745938232267,-618.51482666,0.000266,2]
[359335884,1745938232276,-327.73,0.00026732,2]
[359335885,1745938232286,-408.54268119,0.00026999,2]
[359335886,1745938232298,-791.45731881,0.00026999,2]
[359335887,1745938232308,-6419.54268119,0.00027,2]
[359335888,1745938232319,-1285.90345045,0.00027,2]
[359335889,1745938232331,-562.76417773,0.00027,2]
[359335890,1745938232414,-16177.98052171,0.00027,2]
[359335891,1745938232424,-250.0,0.00027,2]
[359335892,1745938232435,-500.64101738,0.00027,2]
[359335893,1745938232444,-998.65401724,0.00027,2]
[359335894,1745938232453,-176.37337305,0.00027,2]
[359335895,1745938232463,-1000.0,0.000271,2]
[359335896,1745938232473,-3549.29,0.00027123,2]
[359335897,1745938232482,-162.67,0.00027174,2]
[359335898,1745938232492,-11292.4036,0.000272,2]
[359335899,1745938232501,-500.0,0.00027277,2]
[359335900,1745938232511,-269.9524,0.00027277,2]
[359335901,1745938232520,-1115.0421,0.00027277,2]
[359335902,1745938232530,-305.51589382,0.00027285,2]
[359335903,1745938232541,-12266.6117,0.00027295,2]
[359335904,1745938232551,-597.0693,0.00027295,2]
[359335905,1745938232560,-3102.11605059,0.00027296,2]
[359335906,1745938232570,-2966.41588257,0.00027296,2]
[359335907,1745938232579,-1002.87526882,0.000273,2]
[359335908,1745938232588,-3105.96192621,0.000273,2]
[359335909,1745938232598,-544.0,0.000273,3]
[359335910,1745938232608,-1000.0,0.000273,2]
[359335911,1745938232617,-1000.0,0.000273,2]
[359335912,1745938232627,-770.0,0.000273,2]
[359335913,1745938232636,-337.80503581,0.00027306,2]
[359335914,1745938232646,-379.78007086,0.00027345,2]
[359335915,1745938232656,-1000.0,0.00027356,2]
[359335916,1745938232665,-459.34394019,0.00027373,2]
[359335917,1745938232675,-500.0,0.00027373,2]
[359335919,1745938232684,-256.64092137,0.00027373,2]
[359335921,1745938232694,-21634.08967199,0.00027377,2]
[359335923,1745938232704,-213.56250717,0.00027385,2]
[359335925,1745938232714,-151.0,0.00027385,7]
[359335927,1745938232724,-151.0,0.00027385,7]
[359335929,1745938232733,-342.05859,0.00027385,7]
[359335930,1745938232743,-342.05859,0.00027385,7]
[359335931,1745938232752,-167.528357,0.00027385,7]
[359335932,1745938232761,-15961.14468729,0.00027385,2]
[359335987,1745938238264,-663.98215556,0.00027285,2]
[359335988,1745938238274,-395.21684368,0.00027385,2]
[359335989,1745938238371,-7633.272,0.00027385,2]
[359335990,1745938238510,-534.28788871,0.00027385,2]
[359335991,1745938238523,-1465.71211129,0.00027385,2]
[359335992,1745938238536,-426.63748379,0.00027385,2]
[359335999,1745938240344,-9839.22621563,0.00027385,2]
[359336001,1745938240386,-383002.03137426,0.00027385,2]
[359336003,1745938240511,-11728.87028979,0.00027385,2]
[359336005,1745938240698,-1000.0,0.00027385,2]
[359336006,1745938240727,-527.55520127,0.00027385,2]
[359336007,1745938240833,-9179.62520299,0.00027385,2]
[359336027,1745938243339,-151.0,0.00027385,7]
[359336029,1745938243348,-73900.64712565,0.00027385,2]
[359336031,1745938243359,-44060.57021085,0.00027385,2]
[359336034,1745938243594,-381.57937558,0.00027385,2]
[359336039,1745938246227,-1192.05219596,0.00027295,2]
[359336040,1745938246238,-3568.8,0.00027295,2]
[359336041,1745938246631,-932.94170404,0.00027295,2]
[359336042,1745938246641,-801.49829596,0.00027385,2]
[359336043,1745938246653,-18944.2128,0.00027385,2]
[359336044,1745938246670,-1800.0,0.00027385,2]
[359336045,1745938246792,-3097.4849216,0.00027385,2]
[359336138,1745938272449,195.6158994,0.00026326,4]
[359336139,1745938316490,195.6158994,0.00026326,4]
[359336140,1745938361544,195.6158995,0.00026326,4]
[359336141,1745938515707,150.40247705,0.000369,60]
[359336142,1745938767930,-152.0,0.00024483,2]
[359336143,1745938775034,-162.72,0.00024483,2]
[359336144,1745938970442,1635.1953157,0.00036986,60]
[359336145,1745939033714,500.0,0.0003698,60]
[359336146,1745939046630,150.83,0.00027425,30]
[359336147,1745939049744,515.63413232,0.0003698,60]
[359336148,1745939059121,2000.0,0.00027397,30]
[359336149,1745939059303,500.0,0.0003698,60]
[359336150,1745939059426,2000.0,0.00027671,30]
[359336151,1745939059654,2078.58267318,0.00027945,30]
[359336152,1745939111805,8000.0,0.00036,60]
[359336153,1745939128329,996.0,0.00036,60]
[359336154,1745939428892,8522.94703088,0.000248,5]
[359336160,1745939431410,-353.55172949,0.000248,5]
[359336161,1745939431604,-11089.63109692,0.000248,5]
[359336162,1745939431640,-21801.58903446,0.000248,5]
[359336354,1745939437738,-5950.8560859,0.000248,5]
[359336495,1745939440001,-13351.64172739,0.000248,5]
[359336496,1745939440011,-207.4,0.00026144,2]
[359336497,1745939440021,-1000.0,0.00026412,2]
[359336498,1745939440030,-500.0,0.00026685,2]
[359336499,1745939440040,-314.72,0.00026747,2]
[359336500,1745939440049,-200.0,0.00027166,2]
[359336501,1745939440059,-500.0,0.00027205,2]
[359336502,1745939440068,-1200.0,0.00027284,2]
[359336503,1745939440078,-267.32640711,0.00027285,2]
[359336504,1745939440087,-328.2409,0.00027285,2]
[359336505,1745939440096,-36226.7403,0.00027285,2]
[359336506,1745939440107,-3997.0268,0.00027285,2]
[359336507,1745939440116,-569.1275619,0.00027286,2]
[359336508,1745939440125,-289.54717356,0.00027287,2]
[359336509,1745939440135,-2888.36555388,0.00027287,2]
[359336510,1745939440144,-303.82405668,0.00027296,2]
[359336511,1745939440154,-500.0,0.00027373,2]
[359336512,1745939440163,-119491.417886,0.00027376,2]
[359336513,1745939440172,-54050.9613389,0.00027377,2]
[359336518,1745939442653,-1167.51,0.000258,4]
[359336519,1745939442774,-58832.49,0.000258,4]
[359336520,1745939442784,-35567.6020759,0.00027377,2]
[359336521,1745939442794,-77713.8743513,0.00027377,2]
[359336522,1745939442805,-294.48025893,0.00027385,2]
[359336523,1745939442815,-29872.8544716,0.00027385,2]
[359336524,1745939442824,-300.0,0.00027385,10]
[359336525,1745939442834,-25904.6247838,0.00027386,2]
[359336526,1745939442843,-300.0,0.00027386,10]
[359336527,1745939442853,-1068.9991199,0.00027386,2]
[359336528,1745939442863,-1101.33418483,0.00027386,2]
[359336529,1745939442872,-29872.8544716,0.00027386,2]
[359336530,1745939442881,-25904.6247838,0.00027386,2]
[359336531,1745939442891,-213.56250715,0.00027386,2]
[359336532,1745939442900,-188752.69899018,0.00027386,2]
[359336537,1745939445654,-569.06599975,0.000269,7]
[359336538,1745939445811,-764.24118336,0.000269,7]
[359336539,1745939445824,-352.76724253,0.000269,7]
[359336540,1745939445834,-7317.43275747,0.00027386,2]
[359336542,1745939445894,-28360.66649861,0.00027386,2]
[359336760,1745939455415,508.39,0.00036,60]
[359336761,1745939463615,508.16,0.00036,60]
[359336762,1745939470877,508.16,0.00036,60]
[359336763,1745939477183,508.16,0.00036,60]
[359336764,1745939483581,508.16,0.00036,60]
[359336765,1745939490606,508.16,0.00036,60]
[359336766,1745939501068,508.16,0.00036,60]
[359336767,1745939511927,508.16,0.00036,60]
[359336768,1745939519713,508.1,0.00036,60]
[359336769,1745939525640,508.16,0.00036,60]
[359336770,1745939535807,508.16,0.00036,60]
[359336771,1745939539633,508.16,0.00036,60]
[359336772,1745939544937,508.16,0.00036,60]
[359336773,1745939551411,508.16,0.00036,60]
[359336774,1745939561821,508.16,0.00036,60]
[359336775,1745939573253,508.16,0.00036,60]
[359336776,1745939581418,508.16,0.00036,60]
[359336777,1745939585991,508.16,0.00036,60]
[359336778,1745939593514,508.1,0.00036,60]
[359336779,1745939599300,508.16,0.00036,60]
[359336780,1745939604600,508.16,0.00036,60]
[359336781,1745939609440,508.16,0.00036,60]
[359336782,1745939614271,508.16,0.00036,60]
[359336783,1745939619091,508.16,0.00036,60]
[359336784,1745939625629,508.16,0.00036,60]
[359336785,1745939632284,508.16,0.00036,60]
[359336786,1745939639289,508.16,0.00036,60]
[359336787,1745939655185,508.16,0.00036,60]
[359336788,1745939660061,508.16,0.00036,60]
[359336789,1745939665307,508.16,0.00036,60]
[359336790,1745939669895,508.16,0.00036,60]
[359336791,1745939677351,508.16,0.00036,60]
[359336792,1745939702483,508.16,0.00036,60]
[359336793,1745939711969,508.16,0.00036,60]
[359336794,1745939717507,508.16,0.00036,60]
[359336795,1745939723009,508.16,0.00036,60]
[359336796,1745939760527,508.16,0.00036,60]
[359336797,1745939767369,508.16,0.00036,60]
[359336798,1745939772297,508.16,0.00036,60]
[359336799,1745939778039,508.16,0.00036,60]
[359336800,1745939783116,508.16,0.00036,60]
[359336801,1745939867849,508.16,0.00036,60]
[359336802,1745939877989,508.16,0.00036,60]
[359336803,1745939887036,508.16,0.00036,60]
[359336804,1745939889851,-178.3320555,0.00024472,2]
[359336805,1745939893692,508.16,0.00036,60]
[359336806,1745939900628,508.16,0.00036,60]
[359336807,1745939916615,262.55219151,0.00036,60]
[359336808,1745940310523,5094.93004005,0.000154,2]
[359336809,1745940329675,15982.50332211,0.000199,2]
[359336810,1745940337341,-104.9079445,0.00024472,2]
[359336811,1745940337364,-207.4,0.00026144,2]
[359336812,1745940337388,-184.6347467,0.00026326,4]
[359336813,1745940337409,-2000.0,0.00026382,2]
[359336814,1745940337432,-300.0,0.00026699,2]
[359336815,1745940337455,-1200.0,0.00026699,2]
[359336816,1745940337478,-3606.1351,0.000267,2]
[359336817,1745940337501,-283.24,0.00026736,2]
[359336818,1745940337524,-1147.11042157,0.00026799,2]
[359336819,1745940337551,-966.57178723,0.000268,4]
[359336820,1745940340186,-10000.0,0.000268,4]
[359336821,1745940341193,-10000.0,0.000268,4]
[359336822,1745940341276,-10000.0,0.000268,4]
[359336823,1745940341800,-10000.0,0.000268,4]
[359336824,1745940342205,-10000.0,0.000268,4]
[359336825,1745940342583,-9033.42821277,0.000268,4]
[359336826,1745940342606,-966.57178723,0.000268,4]
[359336827,1745940343156,-10000.0,0.000268,4]
[359336828,1745940343499,-10000.0,0.000268,4]
[359336829,1745940343994,-10000.0,0.000268,4]
[359336830,1745940344408,-10000.0,0.000268,4]
[359336831,1745940344765,-9033.42821277,0.000268,4]
[359336832,1745940344792,-966.57178723,0.000269,7]
[359336833,1745940345505,-833.27118064,0.000269,7]
[359336834,1745940345528,-824.235308,0.0002692,2]
[359336835,1745940345550,-837.50123731,0.00026999,2]
[359336836,1745940345573,-2966.36253811,0.000271,2]
[359336837,1745940345595,-4538.62973594,0.000271,2]
[359336838,1745940345848,-10000.0,0.000271,2]
[359336839,1745940346930,-3997.0268,0.00027,2]
[359336840,1745940346952,-6002.9732,0.000271,2]
[359336841,1745940347728,-10000.0,0.000271,2]
[359336842,1745940348529,-10000.0,0.000271,2]
[359336843,1745940349660,-10000.0,0.000271,2]
[359336844,1745940350829,-10000.0,0.000271,2]
[359336846,1745940362797,-907.0,0.000271,2]
[359336847,1745940477464,10000.0,0.0002,2]
[359336848,1745940477486,10000.0,0.0002,2]
[359336849,1745940477511,10000.0,0.0002,2]
[359336850,1745940477534,2907.63462537,0.0002,2]
[359336860,1745940631613,-207.4,0.00026144,2]
[359336861,1745940631623,-94.6,0.00026209,2]
[359336862,1745940631635,-1510.66684676,0.00026209,2]
[359336863,1745940631645,-100.81790087,0.00026326,4]
[359336864,1745940631656,-83.81684593,0.00026326,4]
[359336865,1745940631666,-221.91174407,0.000269,7]
[359336866,1745940631677,-326.29134845,0.000269,7]
[359336867,1745940631793,-979.67632175,0.000269,7]
[359336868,1745940631805,-211.96878784,0.000269,7]
[359336869,1745940631815,-1200.0,0.00026999,2]
[359336870,1745940631825,-2500.0,0.00027,2]
[359336871,1745940631837,-6117.64069032,0.00027,2]
[359336872,1745940631846,-164.34,0.00027054,2]
[359336873,1745940631856,-47575.14443491,0.000271,2]
[359336874,1745940631867,-765.950844,0.000271,2]
[359336875,1745940631885,-2445.75038882,0.000271,2]
[359336876,1745940631896,-1854.9,0.000271,2]
[359336877,1745940631907,-23660.47239633,0.000271,2]
[359336878,1745940631916,-14168.913,0.00027187,2]
[359336879,1745940631925,-3257.4686673,0.00027197,2]
[359336880,1745940631935,-12130.7314,0.000272,2]
[359336881,1745940631944,-6304.8784,0.000272,2]
[359336882,1745940631954,-5214.7461,0.000272,2]
[359336883,1745940631964,-2669.72628429,0.000272,2]
[359336904,1745940632191,-4733.46106352,0.00027256,2]
[359336905,1745940632201,-636.27041906,0.00027256,2]
[359336906,1745940632211,-351.26469596,0.00027266,2]
[359336907,1745940632220,-322.44742986,0.00027267,2]
[359336908,1745940632230,-9801.3664,0.00027276,2]
[359336909,1745940632241,-500.0,0.00027276,2]
[359336910,1745940632250,-246.6485,0.00027277,2]
[359336911,1745940632261,-443.61,0.0002729,2]
[359336912,1745940632270,-443.61,0.0002729,2]
[359336913,1745940632279,-443.61,0.0002729,2]
[359336914,1745940632288,-2185.4044,0.00027297,2]
[359336915,1745940632298,-100000.0,0.000273,3]
[359336916,1745940632307,-151.0,0.000273,7]
[359336917,1745940632316,-239.199071,0.000273,7]
[359336918,1745940632325,-151.0,0.000273,7]
[359336919,1745940632335,-151.0,0.000273,7]
[359336920,1745940632344,-569.077478,0.000273,7]
[359336921,1745940632354,-151.0,0.000273,7]
[359336922,1745940632363,-569.077478,0.000273,7]
[359336923,1745940632372,-151.0,0.000273,7]
[359336924,1745940632382,-452.484031,0.000273,7]
[359336925,1745940632391,-452.484031,0.000273,7]
[359336926,1745940632400,-177.453808,0.000273,7]
[359336927,1745940632410,-177.453808,0.000273,7]
[359336928,1745940632420,-150.0,0.000273,2]
[359336929,1745940632429,-151.0,0.000273,7]
[359336930,1745940632439,-911.587642,0.000273,7]
[359336931,1745940632448,-151.0,0.000273,7]
[359336932,1745940632457,-911.587642,0.000273,7]
[359336933,1745940632466,-151.0,0.000273,7]
[359336934,1745940632476,-150.0,0.000273,2]
[359336935,1745940632485,-443.61,0.00027346,2]
[359336936,1745940632495,-443.61,0.00027346,2]
[359336937,1745940632504,-443.61,0.00027346,2]
[359336938,1745940632513,-443.61,0.00027346,2]
[359336939,1745940632523,-443.61,0.00027346,2]
[359336940,1745940632533,-443.61,0.00027346,2]
[359336941,1745940632543,-443.61,0.00027346,2]
[359336942,1745940632552,-341.89517868,0.00027355,10]
[359336943,1745940632561,-200.08039368,0.00027355,2]
[359336944,1745940632571,-174.37815307,0.00027355,2]
[359336945,1745940632580,-205.49315716,0.00027355,2]
[359336946,1745940632589,-183.46585689,0.00027355,2]
[359336947,1745940632599,-194.66039676,0.00027355,2]
[359336948,1745940632608,-30350.6840619,0.00027356,2]
[359336949,1745940632618,-151.0,0.00027356,7]
[359336950,1745940632627,-151.0,0.00027356,7]
[359336951,1745940632636,-151.0,0.00027356,7]
[359336952,1745940632646,-151.0,0.00027356,7]
[359336953,1745940632656,-151.0,0.00027356,7]
[359336954,1745940632666,-151.0,0.00027356,7]
[359336955,1745940632676,-153.546988,0.00027356,7]
[359336956,1745940632685,-151.0,0.00027356,7]
[359336957,1745940632695,-151.0,0.00027356,7]
[359336958,1745940632704,-151.0,0.00027356,7]
[359336959,1745940632714,-173.134689,0.00027356,7]
[359336960,1745940632724,-151.0,0.00027356,7]
[359336961,1745940632733,-151.0,0.00027356,7]
[359336962,1745940632743,-252.676023,0.00027356,7]
[359336963,1745940632753,-151.0,0.00027356,7]
[359336964,1745940632763,-151.0,0.00027356,7]
[359336965,1745940632773,-151.0,0.00027356,7]
[359336966,1745940632782,-167.592517,0.00027356,7]
[359336967,1745940632791,-151.0,0.00027356,7]
[359336968,1745940632801,-151.0,0.00027356,7]
[359336969,1745940632810,-94287.77169622,0.00027356,2]
[359336970,1745940632822,-298.08372487,0.00027356,2]
[359336971,1745940632833,-749.2210027,0.00027356,2]
[359336972,1745940632845,-283.55603668,0.00027356,2]
[359336973,1745940632856,-450.0,0.00027356,2]
[359336974,1745940632878,-10684.79137595,0.00027356,2]
[359336976,1745940637606,-151.0,0.00027356,7]
[359336977,1745940637615,-151.0,0.00027356,7]
[359336978,1745940637625,-151.0,0.00027356,7]
[359336979,1745940637634,-151.0,0.00027356,7]
[359336980,1745940637644,-151.0,0.00027356,7]
[359336981,1745940637653,-1269.25,0.00027356,2]
[359336982,1745940637665,-567.55806478,0.00027356,2]
[359336983,1745940637676,-396.29552,0.00027356,2]
[359336984,1745940637688,-584.78514729,0.00027356,2]